bitfinex-derivatives/quotes_BTCF0:USTF0_20250805
["timestamp","ask_amount","ask_price","bid_price","bid_amount"]
[1754412674260,0.5846845,113120.0,113110.0,1.54644885]
[1754412674461,0.3608,113120.0,113110.0,1.54644885]
[1754412674666,0.5376345,113120.0,113110.0,1.54644885]
[1754412674866,0.5376345,113120.0,113110.0,1.54844885]
[1754412676562,0.5719745,113120.0,113110.0,1.54844885]
[1754412676762,0.5719745,113120.0,113110.0,1.54944885]
[1754412677564,0.5719745,113120.0,113110.0,1.54844885]
[1754412677868,0.5909245,113120.0,113110.0,1.54844885]
[1754412678567,0.7032845,113120.0,113110.0,1.54844885]
[1754412678767,0.6843345,113120.0,113110.0,1.54844885]
[1754412679066,0.3235345,113120.0,113110.0,1.54844885]
[1754412679365,0.6843345,113120.0,113110.0,1.54844885]
[1754412679961,0.5075,113120.0,113110.0,1.54844885]
[1754412680366,0.6843346,113120.0,113110.0,1.54844885]
[1754412680567,0.1467,113120.0,113110.0,1.54844885]
[1754412680969,0.6645832,113140.0,113130.0,0.2806489]
[1754412681263,0.6645832,113140.0,113130.0,1.45779855]
[1754412681467,0.6650632,113140.0,113130.0,1.45779855]
[1754412681767,0.7420232,113140.0,113130.0,1.45779855]
[1754412682569,0.7420232,113140.0,113130.0,1.46079855]
[1754412683067,0.20441,113140.0,113130.0,1.46079855]
[1754412683271,0.3812134,113140.0,113130.0,1.46079855]
[1754412683963,0.7420134,113140.0,113130.0,1.46079855]
[1754412684767,0.7420134,113140.0,113130.0,1.46971219]
[1754412685070,0.7420134,113140.0,113130.0,1.46979219]
[1754412685465,0.7184634,113140.0,113130.0,1.46979219]
[1754412685975,0.7420134,113140.0,113130.0,1.47079219]
[1754412686870,0.7420134,113140.0,113130.0,0.91612254]
[1754412687069,0.7420134,113140.0,113130.0,1.47079219]
[1754412687871,0.6650534,113140.0,113130.0,1.47079219]
[1754412688679,0.6650534,113140.0,113130.0,1.38897919]
[1754412689772,0.5728534,113140.0,113130.0,1.38897919]
[1754412689972,0.39605,113140.0,113130.0,1.38897919]
[1754412690770,0.5728534,113140.0,113130.0,1.38897919]
[1754412690967,0.6077534,113140.0,113130.0,1.38897919]
[1754412691171,0.6260134,113140.0,113130.0,2.61169919]
[1754412691472,0.11196,113140.0,113130.0,2.61169919]
[1754412691774,0.08841,113140.0,113130.0,2.61169919]
[1754412691975,0.7095282,113150.0,113140.0,0.2831434]
[1754412692271,0.7095282,113150.0,113140.0,0.75600005]
[1754412693370,0.5817982,113150.0,113140.0,0.75600005]
[1754412693562,0.5817982,113150.0,113140.0,0.75604005]
[1754412694072,0.5376006,113150.0,113140.0,0.75604005]
[1754412694369,0.5725006,113150.0,113140.0,0.75704005]
[1754412694570,0.6487906,113150.0,113140.0,0.75704005]
[1754412694765,0.6653306,113150.0,113140.0,0.75704005]
[1754412695469,0.12773,113150.0,113140.0,0.75704005]
[1754412696267,0.03448,113150.0,113140.0,0.75704005]
[1754412696468,0.2112677,113150.0,113140.0,0.75804005]
[1754412696774,0.06938,113150.0,113140.0,0.75804005]
[1754412697275,0.06938,113150.0,113140.0,0.76004005]
[1754412697676,0.2461677,113150.0,113140.0,0.76004005]
[1754412698876,0.8889802,113160.0,113150.0,0.2831277]
[1754412699078,0.91084733,113160.0,113150.0,1.37814435]
[1754412700077,0.91085384,113160.0,113150.0,1.37814435]
[1754412700476,0.91085384,113160.0,113150.0,1.37914435]
[1754412701680,0.86665744,113160.0,113150.0,1.37914435]
[1754412701881,0.79891184,113160.0,113150.0,1.37914435]
[1754412702084,0.82246184,113160.0,113150.0,1.37914435]
[1754412702783,0.77826834,113160.0,113150.0,1.4510752]
[1754412702991,0.24068364,113160.0,113150.0,1.4510752]
[1754412703284,0.41745574,113160.0,113150.0,1.4510752]
[1754412703584,0.77825574,113160.0,113150.0,1.4510752]
[1754412708079,0.28972574,113160.0,113150.0,1.4510752]
[1754412708280,0.73816574,113160.0,113150.0,1.4510752]
[1754412708480,0.68500574,113160.0,113150.0,1.4510752]
[1754412708885,0.66265574,113160.0,113150.0,1.4510752]
[1754412709786,0.66265574,113160.0,113150.0,1.4509152]
[1754412710177,0.77825574,113160.0,113150.0,1.4509152]
[1754412711688,0.68717574,113160.0,113150.0,1.4509152]
[1754412712489,0.61046574,113160.0,113150.0,1.4509152]
[1754412712684,0.68759574,113160.0,113150.0,1.4509152]
[1754412713684,0.68759574,113160.0,113150.0,0.6521275]
[1754412713888,0.68759574,113160.0,113150.0,0.6424875]
[1754412714083,0.68759574,113160.0,113150.0,1.2644475]
[1754412714289,0.68759574,113160.0,113150.0,1.4412353]
[1754412714686,0.68759574,113160.0,113150.0,1.4506253]
[1754412716385,0.64468574,113160.0,113150.0,1.4506253]
[1754412716591,0.68759574,113160.0,113150.0,1.4506253]
[1754412716890,0.68759574,113160.0,113150.0,1.7135253]
[1754412717282,0.55944574,113160.0,113150.0,1.7135253]
[1754412717484,0.02187364,113160.0,113150.0,1.7135253]
[1754412718497,0.02187364,113160.0,113150.0,2.18638195]
[1754412718791,0.02187364,113160.0,113150.0,2.54718195]
[1754412719896,0.19864584,113160.0,113150.0,2.54718195]
[1754412720085,0.02187364,113160.0,113150.0,2.54718195]
[1754412721290,0.63929,113170.0,113160.0,0.2787821]
[1754412721495,0.63929,113170.0,113160.0,1.4873954]
[1754412721496,0.66112319,113170.0,113160.0,1.4873954]
[1754412722388,0.66112319,113170.0,113160.0,1.2244954]
[1754412722589,0.12355319,113170.0,113160.0,1.2244954]
[1754412722789,0.12355319,113170.0,113160.0,1.4873954]
[1754412723093,0.7093373,113190.0,113180.0,0.2583809]
[1754412723393,0.6651553,113190.0,113180.0,1.37344755]
[1754412723791,0.12762,113190.0,113180.0,1.37344755]
[1754412723991,0.5880042,113200.0,113190.0,0.2787353]
[1754412724188,0.6651342,113200.0,113190.0,0.75159195]
[1754412724389,0.5879997,113200.0,113190.0,0.75159195]
[1754412725490,0.1767097,113200.0,113190.0,0.75159195]
[1754412726189,0.1767097,113200.0,113190.0,0.76056302]
[1754412726387,0.5375066,113210.0,113200.0,0.2787197]
[1754412726586,0.6651266,113210.0,113200.0,1.846193]
[1754412726792,0.7650466,113210.0,113200.0,1.37333635]
[1754412727189,0.7650466,113210.0,113200.0,1.846193]
[1754412727598,0.7650466,113210.0,113200.0,1.37333635]
[1754412727793,0.58834,113210.0,113200.0,1.846193]
[1754412728000,0.7650341,113210.0,113200.0,1.846193]
[1754412729091,0.52915,113210.0,113200.0,1.846193]
[1754412729290,0.7058441,113210.0,113200.0,1.846193]
[1754412729691,0.6059241,113210.0,113200.0,1.846193]
[1754412729898,0.6250641,113210.0,113200.0,1.846193]
[1754412730792,0.6651141,113210.0,113200.0,1.846193]
[1754412731006,0.6222041,113210.0,113200.0,0.75157635]
[1754412731197,0.6651141,113210.0,113200.0,1.37325635]
[1754412731900,0.6651141,113210.0,113200.0,0.75157635]
[1754412732096,0.2538397,113200.0,113190.0,0.00897107]
[1754412732298,0.6651297,113200.0,113190.0,0.1920653]
[1754412732599,0.6651297,113200.0,113190.0,1.31008195]
[1754412732791,0.6651297,113200.0,113190.0,1.33045195]
[1754412732991,0.6651297,113200.0,113190.0,1.33984195]
[1754412733302,0.6651297,113200.0,113190.0,1.34887564]
[1754412733497,0.5717197,113200.0,113190.0,1.34887564]
[1754412733699,0.6488497,113200.0,113190.0,1.34887564]
[1754412733998,0.6651297,113200.0,113190.0,1.34887564]
[1754412734198,0.48842,113200.0,113190.0,0.90940899]
[1754412734500,0.12762,113200.0,113190.0,1.38226564]
[1754412734901,0.10385,113200.0,113190.0,1.38226564]
[1754412735098,0.03421,113200.0,113190.0,1.38222564]
[1754412735297,0.5374941,113210.0,113200.0,0.2787197]
[1754412735504,0.5374941,113210.0,113200.0,1.224433]
[1754412736403,0.6651141,113210.0,113200.0,0.75157635]
[1754412737499,0.6651141,113210.0,113200.0,1.01747635]
[1754412737897,0.6117541,113210.0,113200.0,1.01747635]
[1754412738209,0.5717041,113210.0,113200.0,1.491333]
[1754412738504,0.6059241,113210.0,113200.0,1.491333]
[1754412738704,0.6651141,113210.0,113200.0,1.01847635]
[1754412739500,0.6651141,113210.0,113200.0,0.93180635]
[1754412739710,0.6651141,113210.0,113200.0,1.01834635]
[1754412740607,0.6651141,113210.0,113200.0,1.63990635]
[1754412742605,0.5374941,113210.0,113200.0,2.112763]
[1754412743208,0.59154821,113210.0,113200.0,2.112763]
[1754412743512,0.68218821,113210.0,113200.0,2.112763]
[1754412744103,0.50549411,113210.0,113200.0,2.112763]
[1754412744607,0.05503411,113210.0,113200.0,2.112763]
[1754412744803,0.02136411,113210.0,113200.0,2.112763]
[1754412745208,0.8667241,113220.0,113210.0,0.2278541]
[1754412745408,0.88810513,113220.0,113210.0,0.75454075]
[1754412748404,0.88810513,113220.0,113210.0,0.7455883]
[1754412748812,0.88810513,113220.0,113210.0,0.8263083]
[1754412749012,0.88810513,113220.0,113210.0,0.8273083]
[1754412749307,0.88810513,113220.0,113210.0,1.0902083]
[1754412749913,0.88810513,113220.0,113210.0,0.9852183]
[1754412750114,0.88810513,113220.0,113210.0,1.4300042]
[1754412750413,0.88810513,113220.0,113210.0,1.6066983]
[1754412750909,0.88810513,113220.0,113210.0,1.6309683]
[1754412751114,0.88810513,113220.0,113210.0,1.6066983]
[1754412752209,0.88810513,113220.0,113210.0,1.0094883]
[1754412752408,0.88810513,113220.0,113210.0,1.6309683]
[1754412753717,0.88810513,113220.0,113210.0,1.6513383]
[1754412754119,0.88818097,113220.0,113210.0,1.6605283]
[1754412754715,0.68858807,113220.0,113210.0,1.6605283]
[1754412754919,0.79983807,113220.0,113210.0,1.6605283]
[1754412755121,0.72653807,113220.0,113210.0,1.6605283]
[1754412755321,0.68858807,113220.0,113210.0,1.6605283]
[1754412755814,0.13901687,113220.0,113210.0,1.6605283]
[1754412756014,0.5374761,113230.0,113220.0,0.2816684]
[1754412756326,0.1766761,113230.0,113220.0,1.01742505]
[1754412756824,0.2571161,113230.0,113220.0,1.01742505]
[1754412757218,0.08044,113230.0,113220.0,1.01742505]
[1754412758024,0.08044,113230.0,113220.0,1.37822505]
[1754412759624,0.2649731,113240.0,113230.0,0.1766629]
[1754412759827,0.3275731,113240.0,113230.0,1.37590955]
[1754412760226,0.3277801,113240.0,113230.0,1.37590955]
[1754412760424,0.2836173,113240.0,113230.0,1.37590955]
[1754412760620,0.2430073,113240.0,113230.0,1.37590955]
[1754412761125,0.2836173,113240.0,113230.0,1.63880955]
[1754412762517,0.2103173,113240.0,113230.0,1.63880955]
[1754412762828,0.2608373,113240.0,113230.0,1.63980955]
[1754412763524,0.2608373,113240.0,113230.0,1.64280955]
[1754412763721,0.2608373,113240.0,113230.0,1.37990955]
[1754412763933,0.01208,113240.0,113230.0,1.37990955]
[1754412764227,0.2430072,113240.0,113230.0,1.37990955]
[1754412765329,0.2103172,113240.0,113230.0,1.37990955]
[1754412765630,0.2103172,113240.0,113230.0,0.9070529]
[1754412765827,0.2430072,113240.0,113230.0,1.37990955]
[1754412766028,0.2999772,113240.0,113230.0,1.37990955]
[1754412766734,0.2771972,113240.0,113230.0,1.37990955]
[1754412767232,0.2593672,113240.0,113230.0,1.37990955]
[1754412767532,0.2103172,113240.0,113230.0,1.37990955]
[1754412768233,0.1766472,113240.0,113230.0,1.37990955]
[1754412769032,0.7704754,113250.0,113240.0,0.2573673]
[1754412769236,0.64686993,113250.0,113240.0,0.75449395]
[1754412769429,0.71322993,113250.0,113240.0,0.75449395]
[1754412769634,0.77019993,113250.0,113240.0,0.75449395]
[1754412770226,0.77019993,113250.0,113240.0,0.75549395]
[1754412771033,0.77019993,113250.0,113240.0,0.72593395]
[1754412771234,0.77019993,113250.0,113240.0,0.74630395]
[1754412771536,0.77019993,113250.0,113240.0,0.75536395]
[1754412772035,0.77019993,113250.0,113240.0,0.47385665]
[1754412772336,0.77019993,113250.0,113240.0,0.62224]
[1754412773039,0.77019993,113250.0,113240.0,0.7988872]
[1754412773532,0.75519993,113250.0,113240.0,0.8590472]
[1754412773738,0.75515993,113250.0,113240.0,0.8590472]
[1754412774238,0.75515993,113250.0,113240.0,0.63734]
[1754412774434,0.75515993,113250.0,113240.0,0.001]
[1754412774435,1.52801658,113250.0,113240.0,0.001]
[1754412774644,1.70463184,113250.0,113240.0,0.5872]
[1754412774838,0.3023072,113240.0,113230.0,1.2216]
[1754412775034,1.15707733,113240.0,113230.0,1.8428]
[1754412775529,1.63370133,113240.0,113230.0,1.2216]
[1754412775729,1.63370133,113240.0,113230.0,1.8428]
[1754412776734,0.2264185,113220.0,113210.0,0.9576529]
[1754412776937,1.04505198,113220.0,113210.0,1.5788529]
[1754412777137,1.04505198,113220.0,113210.0,0.9576529]
[1754412777428,1.04505198,113220.0,113210.0,1.5346801]
[1754412778334,1.04505198,113220.0,113210.0,0.17559755]
[1754412778934,1.04505198,113220.0,113210.0,0.96439155]
[1754412779137,1.04505198,113220.0,113210.0,0.07176755]
[1754412779443,1.04505198,113220.0,113210.0,0.924564]
[1754412779932,1.04505198,113220.0,113210.0,1.39742065]
[1754412780328,0.176694,113210.0,113200.0,1.442474]
[1754412780540,0.663154,113210.0,113200.0,2.56931385]
[1754412781139,0.68426975,113210.0,113200.0,1.39746385]
[1754412781342,0.68426975,113210.0,113200.0,0.9246072]
[1754412781543,0.663154,113210.0,113200.0,1.39746385]
[1754412782143,0.6842624,113210.0,113200.0,0.05075]
[1754412782338,0.6842624,113210.0,113200.0,0.001]
[1754412782536,0.6842624,113210.0,113200.0,0.6222]
[1754412782843,0.6842624,113210.0,113200.0,0.8730497]
[1754412783341,0.663154,113210.0,113200.0,0.8910097]
[1754412784237,0.663154,113210.0,113200.0,0.9031197]
[1754412784438,0.663154,113210.0,113200.0,0.9256197]
[1754412784941,0.663154,113210.0,113200.0,1.39847635]
[1754412785643,0.663154,113210.0,113200.0,0.9256197]
[1754412785838,0.663154,113210.0,113200.0,1.39847635]
[1754412786735,0.663154,113210.0,113200.0,0.9256197]
[1754412786933,0.663154,113210.0,113200.0,1.39847635]
[1754412787244,0.663154,113210.0,113200.0,0.9256197]
[1754412787843,0.663154,113210.0,113200.0,1.39847635]
[1754412790847,0.537494,113210.0,113200.0,1.39847635]
[1754412791241,0.537494,113210.0,113200.0,0.9256197]
[1754412791443,0.537494,113210.0,113200.0,1.39847635]
[1754412793847,0.583794,113210.0,113200.0,1.39847635]
[1754412794047,0.625624,113210.0,113200.0,1.39847635]
[1754412794248,0.663154,113210.0,113200.0,1.39847635]
[1754412794848,0.640254,113210.0,113200.0,1.39847635]
[1754412795051,0.663154,113210.0,113200.0,1.39847635]
[1754412795349,0.663154,113210.0,113200.0,1.39843635]
[1754412797651,0.564944,113210.0,113200.0,1.39843635]
[1754412797954,0.549704,113210.0,113200.0,1.39843635]
[1754412798252,0.514704,113210.0,113200.0,1.39843635]
[1754412798648,0.628154,113210.0,113200.0,1.39843635]
[1754412798845,0.628154,113210.0,113200.0,1.39839635]
[1754412800854,0.552234,113210.0,113200.0,1.39839635]
[1754412801053,0.514704,113210.0,113200.0,1.39839635]
[1754412802155,0.502494,113210.0,113200.0,1.39839635]
[1754412805357,0.537214,113210.0,113200.0,1.39839635]
[1754412805551,0.537214,113210.0,113200.0,0.77727635]
[1754412805552,0.502494,113210.0,113200.0,0.77727635]
[1754412805854,0.502494,113210.0,113200.0,1.39831635]
[1754412806051,0.176694,113210.0,113200.0,1.39831635]
[1754412807257,0.176694,113210.0,113200.0,0.77727635]
[1754412807457,0.176694,113210.0,113200.0,1.39831635]
[1754412807660,0.176694,113210.0,113200.0,0.77727635]
[1754412807960,0.176694,113210.0,113200.0,1.39827635]
[1754412808157,0.176694,113210.0,113200.0,0.77827635]
[1754412808759,0.176694,113210.0,113200.0,1.39927635]
[1754412808953,0.176694,113210.0,113200.0,1.40027635]
[1754412809853,0.176694,113210.0,113200.0,1.40023635]
[1754412810055,0.819696,113220.0,113210.0,0.205374]
[1754412810263,0.1458,113220.0,113210.0,1.13416065]
[1754412810763,0.1458,113220.0,113210.0,1.20554657]
[1754412811462,0.1458,113220.0,113210.0,1.20754657]
[1754412811659,0.3224785,113220.0,113210.0,1.20754657]
[1754412812061,0.4469685,113220.0,113210.0,1.46870657]
[1754412812362,0.8077685,113220.0,113210.0,0.84774657]
[1754412812661,0.8077685,113220.0,113210.0,1.47066657]
[1754412813164,0.8077685,113220.0,113210.0,1.46866657]
[1754412813363,0.6832785,113220.0,113210.0,1.46966657]
[1754412813562,0.3224784,113220.0,113210.0,1.46966657]
[1754412813772,0.2839384,113220.0,113210.0,1.46966657]
[1754412814067,0.3603684,113220.0,113210.0,0.84874657]
[1754412814254,0.0592,113220.0,113210.0,1.46962657]
[1754412814672,0.0592,113220.0,113210.0,1.46862657]
[1754412814869,0.2358784,113220.0,113210.0,1.46862657]
[1754412815867,0.0592,113220.0,113210.0,1.46862657]
[1754412816168,0.2358784,113220.0,113210.0,1.46862657]
[1754412816756,0.0592,113220.0,113210.0,1.46862657]
[1754412817568,0.2705985,113220.0,113210.0,1.46862657]
[1754412818064,0.2358785,113220.0,113210.0,1.46862657]
[1754412818461,0.0592,113220.0,113210.0,1.46862657]
[1754412818868,0.0592,113220.0,113210.0,1.82942657]
[1754412819662,0.0592,113220.0,113210.0,1.83142657]
[1754412821266,0.11844,113230.0,113220.0,0.3004884]
[1754412821569,0.11844,113230.0,113220.0,1.13414505]
[1754412822363,0.11844,113230.0,113220.0,1.13714505]
[1754412822662,0.3130322,113240.0,113230.0,0.1766628]
[1754412822861,0.4928622,113240.0,113230.0,1.39404945]
[1754412823863,0.4928622,113240.0,113230.0,0.9211928]
[1754412824071,0.4928622,113240.0,113230.0,1.39404945]
[1754412824273,0.4928622,113240.0,113230.0,1.39604945]
[1754412824965,0.4928622,113240.0,113230.0,1.39704945]
[1754412825771,0.4486995,113240.0,113230.0,1.39704945]
[1754412830373,0.8094995,113240.0,113230.0,1.39684945]
[1754412837971,0.22789,113240.0,113230.0,1.39684945]
[1754412838178,0.1034,113240.0,113230.0,1.39684945]
[1754412839071,0.1034,113240.0,113230.0,2.2305061]
[1754412839277,0.2800472,113240.0,113230.0,1.75764945]
[1754412839473,0.4048072,113240.0,113230.0,1.13712945]
[1754412839665,0.4048072,113240.0,113230.0,1.75744945]
[1754412840170,0.3300472,113240.0,113230.0,1.13712945]
[1754412840377,0.7656072,113240.0,113230.0,0.3034728]
[1754412840572,0.7656072,113240.0,113230.0,0.77632945]
[1754412840874,0.7656072,113240.0,113230.0,1.39664945]
[1754412841671,0.7656072,113240.0,113230.0,1.40079945]
[1754412841871,0.7656072,113240.0,113230.0,0.78047945]
[1754412842073,0.7656072,113240.0,113230.0,1.40075945]
[1754412842474,0.7656072,113240.0,113230.0,0.9279028]
[1754412842674,0.7656072,113240.0,113230.0,1.40075945]
[1754412843073,0.78674436,113240.0,113230.0,1.40075945]
[1754412843979,0.68334436,113240.0,113230.0,1.40075945]
[1754412846780,0.68334436,113240.0,113230.0,0.9278628]
[1754412846981,0.68334436,113240.0,113230.0,1.40071945]
[1754412847183,0.68334436,113240.0,113230.0,1.30164945]
[1754412847575,0.68334436,113240.0,113230.0,1.37739945]
[1754412848280,0.68334436,113240.0,113230.0,0.9278628]
[1754412848482,0.68334436,113240.0,113230.0,0.01948]
[1754412848779,1.15620101,113240.0,113230.0,0.6232]
[1754412849179,1.15620101,113240.0,113230.0,0.62316]
[1754412849481,0.68334436,113240.0,113230.0,0.7998229]
[1754412849782,0.68334436,113240.0,113230.0,0.62316]
[1754412850974,0.68334436,113240.0,113230.0,0.9277829]
[1754412851380,0.68334436,113240.0,113230.0,0.75112]
[1754412851582,0.68334436,113240.0,113230.0,0.9277828]
[1754412851880,0.68334436,113240.0,113230.0,1.40063945]
[1754412852476,0.60858436,113240.0,113230.0,1.40063945]
[1754412852681,0.55858436,113240.0,113230.0,1.40063945]
[1754412853082,0.5374472,113240.0,113230.0,1.40063945]
[1754412858482,0.55921111,113240.0,113230.0,1.40063945]
[1754412858881,0.5374472,113240.0,113230.0,1.40063945]
[1754412860183,0.5489672,113240.0,113230.0,1.40063945]
[1754412860388,0.6622072,113240.0,113230.0,0.60381665]
[1754412860588,0.6622072,113240.0,113230.0,1.40047945]
[1754412860787,0.68430752,113240.0,113230.0,1.40047945]
[1754412861086,0.68430752,113240.0,113230.0,0.623]
[1754412861487,0.68430752,113240.0,113230.0,0.003]
[1754412861787,0.3001228,113230.0,113220.0,1.5189978]
[1754412861987,0.6609228,113230.0,113220.0,2.61181445]
[1754412862386,0.6609228,113230.0,113220.0,2.55895445]
[1754412862586,0.6609228,113230.0,113220.0,2.61194445]
[1754412863087,0.66567354,113230.0,113220.0,2.61194445]
[1754412863288,0.60845354,113230.0,113220.0,2.61194445]
[1754412863587,0.68302354,113230.0,113220.0,2.61194445]
[1754412864794,0.68302354,113230.0,113220.0,2.87484445]
[1754412865493,0.68302354,113230.0,113220.0,2.3577783]
[1754412866392,0.68302354,113230.0,113220.0,2.3587783]
[1754412867088,0.68302354,113230.0,113220.0,2.83163495]
[1754412867285,0.55956354,113230.0,113220.0,1.03928495]
[1754412867489,0.57156354,113230.0,113220.0,1.65920495]
[1754412867684,0.68302354,113230.0,113220.0,1.65920495]
[1754412867986,0.68302354,113230.0,113220.0,1.65820495]
[1754412870096,0.68302354,113230.0,113220.0,1.1853483]
[1754412870285,0.68302354,113230.0,113220.0,1.65820495]
[1754412870593,0.68302354,113230.0,113220.0,1.39530495]
[1754412872594,0.50636074,113230.0,113220.0,1.39530495]
[1754412872790,0.02210074,113230.0,113220.0,1.75610495]
[1754412872987,0.7680435,113250.0,113240.0,0.2258171]
[1754412873192,0.79013992,113250.0,113240.0,1.39516375]
[1754412873496,0.91359992,113250.0,113240.0,1.39516375]
[1754412874195,0.91359992,113250.0,113240.0,0.9223071]
[1754412874496,0.91359992,113250.0,113240.0,1.39516375]
[1754412874896,0.87670992,113250.0,113240.0,1.39516375]
[1754412875795,0.91359992,113250.0,113240.0,1.39516375]
[1754412876501,0.91359992,113250.0,113240.0,1.40422113]
[1754412877892,0.91359992,113250.0,113240.0,0.9223071]
[1754412878093,0.91359992,113250.0,113240.0,1.39516375]
[1754412879194,0.91359992,113250.0,113240.0,0.9223071]
[1754412879396,0.91359992,113250.0,113240.0,1.39516375]
[1754412879699,0.91359301,113250.0,113240.0,1.39516375]
[1754412881605,0.79013301,113250.0,113240.0,1.39516375]
[1754412881801,0.91359301,113250.0,113240.0,1.39516375]
[1754412883799,0.91359301,113250.0,113240.0,1.8680204]
[1754412883800,0.70181371,113250.0,113240.0,1.8680204]
[1754412883996,0.16436951,113250.0,113240.0,1.8680204]
[1754412884907,0.34100111,113250.0,113240.0,1.8680204]
[1754412885111,0.34100111,113250.0,113240.0,1.8690204]
[1754412885806,0.26588111,113250.0,113240.0,1.8690204]
[1754412886001,0.08924951,113250.0,113240.0,2.2298204]
[1754412886206,0.08924951,113250.0,113240.0,1.8710204]
[1754412886808,0.08924951,113250.0,113240.0,2.2318204]
[1754412887410,0.06716,113250.0,113240.0,2.2318204]
[1754412887911,0.06716,113250.0,113240.0,2.2328204]
[1754412889212,0.06716,113250.0,113240.0,2.2338204]
[1754412893511,0.278216,113260.0,113250.0,0.2255416]
[1754412893716,0.278216,113260.0,113250.0,1.01760825]
[1754412894108,0.300996,113260.0,113250.0,1.01760825]
[1754412894416,0.5434778,113270.0,113260.0,0.2818359]
[1754412894417,0.3608,113270.0,113260.0,0.2818359]
[1754412894619,0.7478816,113280.0,113270.0,0.2639803]
[1754412894818,0.7478816,113280.0,113270.0,0.75467695]
[1754412896714,0.7478816,113280.0,113270.0,0.76351016]
[1754412897116,0.7478816,113280.0,113270.0,0.83388638]
[1754412897617,0.7478816,113280.0,113270.0,0.34318973]
[1754412898015,0.7478816,113280.0,113270.0,0.81604638]
[1754412898214,0.7478816,113280.0,113270.0,0.34318973]
[1754412898412,0.7478816,113280.0,113270.0,0.81604638]
[1754412898616,0.7478816,113280.0,113270.0,0.81608638]
[1754412900322,0.7478816,113280.0,113270.0,1.07898638]
[1754412901015,0.7478816,113280.0,113270.0,0.99160638]
[1754412901217,0.7478816,113280.0,113270.0,0.96118943]
[1754412901416,0.7478816,113280.0,113270.0,0.33331622]
[1754412901621,1.24292752,113280.0,113270.0,0.33331622]
[1754412901822,1.71948752,113280.0,113270.0,0.95231622]
[1754412902019,1.71948752,113280.0,113270.0,0.33331622]
[1754412902224,0.2760415,113250.0,113240.0,0.87802735]
[1754412902415,0.6596215,113250.0,113240.0,0.87802735]
[1754412902611,0.6596215,113250.0,113240.0,1.41431585]
[1754412902820,0.6596215,113250.0,113240.0,1.45282585]
[1754412903116,0.6596215,113250.0,113240.0,0.9799692]
[1754412903316,0.6596215,113250.0,113240.0,1.45282585]
[1754412904931,0.6596215,113250.0,113240.0,1.47066585]
[1754412905120,0.3608,113250.0,113240.0,1.9435225]
[1754412905324,0.5374315,113250.0,113240.0,1.9435225]
[1754412905619,0.5602115,113250.0,113240.0,1.47066585]
[1754412905824,0.6596215,113250.0,113240.0,1.47066585]
[1754412906730,0.6596215,113250.0,113240.0,1.47266585]
[1754412907028,0.6596215,113250.0,113240.0,1.47262585]
[1754412907718,0.6596215,113250.0,113240.0,0.85370585]
[1754412907922,0.6596215,113250.0,113240.0,0.010633]
[1754412908122,0.1766627,113230.0,113220.0,0.03851]
[1754412908323,0.2258683,113220.0,113210.0,1.76556257]
[1754412908524,0.68188314,113220.0,113210.0,2.42291257]
[1754412908924,0.68188314,113220.0,113210.0,1.33121592]
[1754412909231,0.68188314,113220.0,113210.0,2.08823992]
[1754412909426,0.68188314,113220.0,113210.0,2.56109657]
[1754412909633,0.68188314,113220.0,113210.0,2.59960657]
[1754412910330,0.68188314,113220.0,113210.0,2.61744657]
[1754412911125,0.58247314,113220.0,113210.0,2.61744657]
[1754412911336,0.5602583,113220.0,113210.0,2.61744657]
[1754412912129,0.5374783,113220.0,113210.0,2.61744657]
[1754412912326,0.5602583,113220.0,113210.0,2.61744657]
[1754412913024,0.5374783,113220.0,113210.0,2.61744657]
[1754412913228,0.7210696,113230.0,113220.0,0.2819383]
[1754412913524,0.6769006,113230.0,113220.0,0.75479495]
[1754412913735,0.7089906,113230.0,113220.0,0.75479495]
[1754412914831,0.7467106,113230.0,113220.0,0.75479495]
[1754412915032,0.7648406,113230.0,113220.0,1.01769495]
[1754412915627,0.7648406,113230.0,113220.0,1.01869495]
[1754412916233,0.7658406,113230.0,113220.0,1.01769495]
[1754412916434,0.6337323,113230.0,113220.0,1.01769495]
[1754412917530,0.2729228,113230.0,113220.0,1.01769495]
[1754412918032,0.07348,113230.0,113220.0,1.01769495]
[1754412918635,0.07248,113230.0,113220.0,1.01869495]
[1754412919029,0.2491427,113230.0,113220.0,1.01869495]
[1754412919234,0.2491427,113230.0,113220.0,1.01969495]
[1754412919432,0.2719227,113230.0,113220.0,1.01969495]
[1754412920230,0.7321327,113230.0,113220.0,0.5289983]
[1754412920536,1.20498935,113230.0,113220.0,0.2649]
[1754412920736,1.20498935,113230.0,113220.0,0.88366]
[1754412921036,0.7321327,113230.0,113220.0,0.62076]
[1754412921734,1.20498935,113230.0,113220.0,0.62076]
[1754412922036,1.20598935,113230.0,113220.0,0.61976]
[1754412922236,1.20598935,113230.0,113220.0,0.001]
[1754412922737,0.7341327,113230.0,113220.0,0.61976]
[1754412922933,0.7341327,113230.0,113220.0,0.61876]
[1754412923133,0.2996484,113220.0,113210.0,1.29270592]
[1754412923335,0.6604484,113220.0,113210.0,1.29270592]
[1754412923732,0.6604484,113220.0,113210.0,1.91146592]
[1754412924140,0.6604484,113220.0,113210.0,1.29270592]
[1754412924439,0.6604484,113220.0,113210.0,1.91142592]
[1754412925238,0.6614484,113220.0,113210.0,1.91142592]
[1754412927335,0.6614484,113220.0,113210.0,1.93183592]
[1754412928038,0.6614484,113220.0,113210.0,1.95017592]
[1754412928740,0.6614484,113220.0,113210.0,2.12686982]
[1754412928945,0.6447984,113220.0,113210.0,2.12686982]
[1754412929137,0.6447984,113220.0,113210.0,2.69819131]
[1754412929535,0.66750602,113220.0,113210.0,2.69819131]
[1754412929736,0.6010884,113220.0,113210.0,2.69819131]
[1754412929935,0.5631184,113220.0,113210.0,2.69819131]
[1754412930134,0.5384784,113220.0,113210.0,2.69819131]
[1754412930336,0.5631184,113220.0,113210.0,2.69819131]
[1754412932747,0.5631184,113220.0,113210.0,2.96109131]
[1754412933741,0.6614484,113220.0,113210.0,2.40760982]
[1754412933943,0.6614484,113220.0,113210.0,2.14783741]
[1754412934147,0.68417283,113220.0,113210.0,1.29270592]
[1754412934352,0.68417283,113220.0,113210.0,1.95009592]
[1754412934942,0.68417283,113220.0,113210.0,2.12678982]
[1754412935144,0.68417283,113220.0,113210.0,2.14462982]
[1754412936054,0.68417283,113220.0,113210.0,1.96793592]
[1754412936352,0.68417283,113220.0,113210.0,1.52598982]
[1754412936546,0.68417283,113220.0,113210.0,2.14458982]
[1754412936755,0.68417283,113220.0,113210.0,1.95005592]
[1754412936939,0.63526283,113220.0,113210.0,2.14458982]
[1754412937139,0.60175283,113220.0,113210.0,2.69807131]
[1754412937442,0.58584283,113220.0,113210.0,2.69807131]
[1754412938050,0.65607283,113220.0,113210.0,2.69807131]
[1754412938253,0.68417283,113220.0,113210.0,2.14458982]
[1754412938745,0.62381283,113220.0,113210.0,2.96097131]
[1754412939344,0.65607283,113220.0,113210.0,2.96097131]
[1754412939651,0.68417283,113220.0,113210.0,2.96097131]